Cogmind - Beta 9.2 @@@ ROGUE MODE // 2020.01.08 @ 19:31:46 Player: Fleshy Vegetable Bird Result: Destroyed self with Sigix Terminator Performance ------------- Evolutions (9) 4500 Regions Visited (24) 4800 Robots Destroyed (102) 510 Value Destroyed (3356) 3356 Prototype IDs (21) 420 Alien Tech Used (3) 600 Bonus (-9) -9 TOTAL SCORE: 14177 Bonus ------- High Alert Combat Kills 315 Follower Combat Kills 411 Entered Garrisons 400 Used RIF Installer 1000 Friendly Fire -2135 Cogmind --------- Core Integrity 0/1600 Matter 42/300 Energy 1084/1100 System Corruption 2% Temperature Cool (20) Movement Core (50) Location -1/Command Parts ------- > --- POWER (2) -------- (None) > --- PROPULSION (8) --- (None) > --- UTILITY (13) ----- Experimental Energy Well Advanced Signal Interpreter Transport Network Coupler Transport Network Coupler Improved Core Analyzer Experimental System Shield > --- WEAPON (2) ------- (None) > --- INVENTORY (4) ---- Field Propulsion Drive Ionic Axe Peak State ------------ > --- POWER ------------ Light Antimatter Reactor Light Antimatter Reactor > --- PROPULSION ------- Nuclear Pulse Thruster Field Propulsion Drive Field Propulsion Drive Nuclear Pulse Array Impulse Thruster > --- UTILITY ---------- Experimental Energy Well Enhanced Optical Array Improved Melee Analysis Suite Advanced Melee Analysis Suite Microactuators Reaction Control System Phase Shifter Hacking Suite System Shield > --- WEAPON ----------- Power Sword Power Sword > --- INVENTORY -------- Nuclear Pulse Thruster Experimental Energy Well Microactuators Micro-nuke Launcher [Rating: 106] Favorites ----------- Power Improved Ion Engine Engine Improved Ion Engine Power Core Micro Fission Core Reactor Light Antimatter Reactor Propulsion Light Treads Treads Light Treads Wheel Compact Wheel Hover Unit Antigrav System Flight Unit Nuclear Pulse Thruster Utility Transport Network Coupler Device Advanced Weight Redist. System Storage High-capacity Storage Unit Processor Transport Network Coupler Hackware Hacking Suite Protection Hardened Light Armor Plating Artifact Stasis Generator Weapon Power Sword Energy Gun Small Laser Energy Cannon Advanced Beam Cannon Ballistic Gun Heavy Assault Rifle Ballistic Cannon Light Cannon Launcher Grenade Launcher Impact Weapon Heavy Hammer Slashing Weapon Power Sword Special Melee Weapon Advanced Datajack Build | -11 -10 -9 -9 -9 -9 -7 -7 -7 -6 -6 -6 -5 -5 -5 -4 -4 -4 -4 -4 -3 -2 -2 -1 -1 ------- Run | Scr Mat Mat Sto Gar Rec Fac Low Low Fac Was Fac Fac Gar Fac Fac Ext Cet Arc Hub Res Res Qua Acc Com Slots Evolved 18 | . . 2 . . . 4 . . 2 . . 2 . . 2 . . . . 2 2 . 2 . Power 1 | . . . . . . . . . 1 . . . . . . . . . . . . . . . Propulsion 6 | . . 1 . . . 1 . . 1 . . 1 . . . . . . . 1 . . 1 . Utility 11 | . . 1 . . . 3 . . . . . 1 . . 2 . . . . 1 2 . 1 . Weapon . | . . . . . . . . . . . . . . . . . . . . . . . . . Parts Attached 182 | 6 6 11 4 13 1 24 1 . 11 . 7 6 2 15 7 15 . 1 . 13 11 18 9 1 Power 28 | 1 1 2 . 2 . 3 . . 2 . 1 . 1 2 1 4 . . . 1 1 4 2 . Engine 13 | 1 1 2 . 2 . 2 . . 2 . . . . 1 . . . . . 1 . 1 . . Core 6 | . . . . . . 1 . . . . 1 . 1 1 . 2 . . . . . . . . Reactor 9 | . . . . . . . . . . . . . . . 1 2 . . . . 1 3 2 . Propulsion 49 | 2 1 3 2 6 . 6 . . 2 . 2 2 1 3 2 4 . . . 6 2 3 2 . Treads 15 | . . 2 2 6 . 5 . . . . . . . . . . . . . . . . . . Leg . | . . . . . . . . . . . . . . . . . . . . . . . . . Wheel 4 | 2 1 1 . . . . . . . . . . . . . . . . . . . . . . Hover 9 | . . . . . . . . . . . . . . . . . . . . 4 1 2 2 . Flight 21 | . . . . . . 1 . . 2 . 2 2 1 3 2 4 . . . 2 1 1 . . Utility 60 | 2 . 3 . 1 . 6 . . 6 . 2 4 . 5 4 6 . 1 . 5 6 6 3 . Device 23 | . . . . . . 1 . . 3 . 1 1 . 4 3 3 . . . 2 2 2 1 . Storage 12 | 2 . 1 . . . 1 . . . . . 1 . . . 3 . . . 1 1 2 . . Processor 11 | . . 1 . . . . . . 3 . . 1 . 1 . . . . . . 3 . 2 . Hackware 6 | . . . . . . . . . . . 1 1 . . 1 . . 1 . 1 . 1 . . Protection 7 | . . 1 . 1 . 4 . . . . . . . . . . . . . 1 . . . . Artifact 1 | . . . . . . . . . . . . . . . . . . . . . . 1 . . Weapon 45 | 1 4 3 2 4 1 9 1 . 1 . 2 . . 5 . 1 . . . 1 2 5 2 1 Energy Gun 10 | 1 1 1 1 2 . 2 . . 1 . 1 . . . . . . . . . . . . . Energy Cannon 4 | . . . 1 . . 2 . . . . . . . . . . . . . . 1 . . . Ballistic Gun 6 | . 2 . . . . 4 . . . . . . . . . . . . . . . . . . Ballistic Cannon 2 | . . 1 . 1 . . . . . . . . . . . . . . . . . . . . Launcher 9 | . 1 1 . 1 . . . . . . . . . . . . . . . . . 4 1 1 Special Weapon . | . . . . . . . . . . . . . . . . . . . . . . . . . Impact Weapon 1 | . . . . . . . . . . . 1 . . . . . . . . . . . . . Slashing Weapon 12 | . . . . . 1 1 1 . . . . . . 5 . 1 . . . . 1 1 1 . Piercing Weapon . | . . . . . . . . . . . . . . . . . . . . . . . . . Special Melee Weapon 1 | . . . . . . . . . . . . . . . . . . . . 1 . . . . Unidentified Prototypes 17 | . . . . . . 4 . . . . 1 . . 1 . 3 . . . 1 1 5 1 . Parts Lost 69 | . 4 1 3 5 . 4 1 1 . . 1 2 7 3 . 6 1 1 2 12 3 3 9 . Power 10 | . 1 . 1 1 . 1 . . . . . . 2 1 . 2 . . . . . . 1 . Propulsion 24 | . 1 1 . 1 . . . . . . 1 1 3 1 . 2 . 1 1 6 . 2 3 . Utility 21 | . . . 1 . . 1 1 . . . . . 2 . . 2 1 . 1 5 1 1 5 . Weapon 14 | . 2 . 1 3 . 2 . 1 . . . 1 . 1 . . . . . 1 2 . . . Highest Loss Streak 9 | . 2 1 2 2 . 2 1 1 . . 1 2 7 2 . 6 1 1 2 7 3 3 9 . Average Slot Usage (%) 76 | . 78 94 94 91 100 92 64 7 42 66 80 81 72 71 92 92 75 73 69 40 35 44 61 24 Engine 5 | . 13 11 10 11 11 5 4 . 7 13 6 5 2 1 2 . . . . . . . . . Reactor 1 | . . . . . . . . . . . . . . . 2 8 . . . . . 3 5 . Treads 11 | . . 13 24 33 33 30 17 . . . . . . . . . . . . . . . . . Wheel 2 | . 18 14 8 . . . . . . . . . . . . . . . . . . . . . Flight 5 | . . . . . . . . . 9 13 19 19 21 13 24 25 15 15 8 3 . 2 1 . Device 4 | . . . . . . 3 . . 6 13 19 15 8 12 15 15 15 15 15 2 1 3 4 . Storage 8 | . 28 15 11 11 11 9 8 . . . . . 5 5 5 5 5 5 5 3 . 1 4 4 Processor 10 | . . 6 11 11 11 7 7 7 17 26 16 11 11 14 15 14 7 5 5 . 7 13 17 16 Hackware 4 | . . . . . . . . . . . 3 9 7 5 9 10 10 10 15 16 17 13 15 4 Protection 4 | . . 11 6 3 11 17 13 . . . . . . . . . . . . 1 . . . . Energy Gun 3 | . 3 2 4 11 9 . 4 . . . 5 5 . . . . . . . . . . . . Ballistic Gun 1 | . 6 2 . . . 9 . . . . . . . . . . . . . . . . . . Ballistic Cannon 2 | . . 8 2 9 11 . . . . . . . . . . . . . . . . . . . Launcher 1 | . 7 8 6 1 . . . . . . . . . . . . . . . . . . . . Slashing Weapon 2 | . . . . . 1 2 2 . . . . . . 9 10 10 10 10 10 4 3 1 3 . Naked Turns . | . . . . . . . . . . . . . . . . . . . . . . . . . Heaviest Build 93 | 15 18 50 51 46 47 93 93 2 15 15 27 28 24 23 34 41 33 33 33 23 18 29 34 2 Greatest Support 80 | 20 20 43 63 63 60 80 80 3 19 19 35 39 49 41 54 56 41 41 33 79 23 29 61 3 Greatest Overweight (x) 3 | 1 1 3 1 2 . 1 1 . . . . . . . . . . . . 3 . 1 1 . Average Overweight (x) . | . . . . . . . . . . . . . . . . . . . . . . . . . Largest Inventory Capacity 20 | 8 8 14 12 12 12 20 20 4 4 4 4 4 4 4 4 4 4 4 4 4 4 4 4 4 Average Capacity 8 | 6 8 10 12 12 12 14 13 4 4 4 4 4 4 4 4 4 4 4 4 4 4 4 4 4 Most Carried 17 | 5 8 11 12 12 12 17 16 4 4 4 4 4 4 4 4 4 4 4 4 4 4 4 4 4 Average Carried 7 | 3 5 9 11 10 12 12 10 3 3 4 3 3 2 3 2 3 4 3 4 3 3 3 3 3 Final Capacity 20 | 8 8 12 12 12 12 20 4 4 4 4 4 4 4 4 4 4 4 4 4 4 4 4 4 4 Final Carried 16 | 5 7 11 12 12 12 16 4 4 4 4 4 4 2 4 4 4 4 4 4 4 3 3 4 2 Class Distribution -------------------- 38% | Mutant 27% | Scavenger-Mutant 19% | Hacker-Mutant 10% | Hacker-Sprinter 4% | Sprinter Dominant Class ---------------- Mutant | -10/Materials Mutant | -9/Materials Mutant | -9/Storage Scavenger-Mutant | -9/Garrison Scavenger-Mutant | -9/Recycling Scavenger-Mutant | -7/Factory Scavenger-Mutant | -7/Lower Caves Scavenger-Mutant | -7/Lower Caves Mutant | -6/Factory Mutant | -6/Waste Sprinter | -6/Factory Sprinter | -5/Factory Mutant | -5/Garrison Mutant | -5/Factory Hacker-Sprinter | -4/Factory Hacker-Sprinter | -4/Extension Hacker-Mutant | -4/Cetus Hacker-Mutant | -4/Archives Hacker-Mutant | -4/Hub_04(d) Hacker-Mutant | -3/Research Hacker-Mutant | -2/Research Hacker-Mutant | -2/Quarantine Hacker-Mutant | -1/Access Mutant | -1/Command Resources | -11 -10 -9 -9 -9 -9 -7 -7 -7 -6 -6 -6 -5 -5 -5 -4 -4 -4 -4 -4 -3 -2 -2 -1 -1 ----------- Run | Scr Mat Mat Sto Gar Rec Fac Low Low Fac Was Fac Fac Gar Fac Fac Ext Cet Arc Hub Res Res Qua Acc Com Matter Collected 2520 | 260 193 271 93 295 . 304 51 . . . 16 . . 354 . 230 . 10 . 85 80 244 34 . Remotely . | . . . . . . . . . . . . . . . . . . . . . . . . . Salvage Created 4419 | 62 343 325 165 522 . 344 72 . . . 16 . . 313 . 1139 . 38 . 111 210 421 338 . Parts 186 | 4 16 21 7 34 . 16 3 . . . 2 . . 12 . 31 . 1 . 3 4 13 19 . Haulers Intercepted 17 | . . 3 1 . . 2 . . . . . . . 1 . 4 . . . 1 2 1 2 . Recyclers Shooed 1 | . . 1 . . . . . . . . . . . . . . . . . . . . . . Parts Field Recycled . | . . . . . . . . . . . . . . . . . . . . . . . . . Retrieved Matter . | . . . . . . . . . . . . . . . . . . . . . . . . . Parts Self-Destructed 5 | . . . . . . . 4 1 . . . . . . . . . . . . . . . . Prevented . | . . . . . . . . . . . . . . . . . . . . . . . . . Kills | -11 -10 -9 -9 -9 -9 -7 -7 -7 -6 -6 -6 -5 -5 -5 -4 -4 -4 -4 -4 -3 -2 -2 -1 -1 ------- Run | Scr Mat Mat Sto Gar Rec Fac Low Low Fac Was Fac Fac Gar Fac Fac Ext Cet Arc Hub Res Res Qua Acc Com Combat Hostiles Destroyed 60 | . 11 5 3 19 . 4 2 . . . . . . . . 5 . . . . . . 7 4 Melee 5 | . . . . . . . . . . . . . . . . 5 . . . . . . . . Guns 12 | . 3 . . 5 . 3 1 . . . . . . . . . . . . . . . . . Cannons 12 | . . 3 1 8 . . . . . . . . . . . . . . . . . . . . AOE 28 | . 8 2 1 6 . . . . . . . . . . . . . . . . . . 7 4 Classes Destroyed 15 | 1 3 3 . 2 . . 1 . . . 1 . . 1 . 1 . . . . . 1 1 . Worker 6 | . . . . . . . . . . . . . . 2 . . . . . 1 1 . 2 . Builder 1 | . 1 . . . . . . . . . . . . . . . . . . . . . . . Hauler 17 | . . 3 1 . . 2 . . . . . . . 1 . 4 . . . 1 2 1 2 . Recycler 6 | 1 . . . . . . . . . . . . . 1 . 2 . . . . . 2 . . Mechanic 1 | . . . . . . . . . . . . . . . . . . . . . . 1 . . Operator 4 | . . . . . . . . . . . 1 . . 1 . 1 . 1 . . . . . . Watcher 5 | . 1 1 . . . . . . . . . . . . . . . . . . . . 1 2 Swarmer 15 | . . . . 8 . . 2 . . . . . . . . . . . . . . . 5 . Grunt 28 | . 11 3 2 6 . 1 . . . . . . . . . 2 . . . . . . . 3 Brawler 3 | . . 1 . 2 . . . . . . . . . . . . . . . . . . . . Duelist 1 | . . . . 1 . . . . . . . . . . . . . . . . . . . . Sentry 10 | . . 1 1 2 . 3 . . . . . . . . . 2 . . . . . . . 1 Hunter 1 | . . . . . . . . . . . . . . . . 1 . . . . . . . . Programmer 2 | . . . . . . . . . . . . . . . . . . . . . . . 2 . Tinkerer 1 | . . . . . . . 1 . . . . . . . . . . . . . . . . . Best Kill Streak 12 | 1 5 5 2 12 . 1 1 . . . 1 . . 1 . 3 . 1 . 1 1 3 9 6 Combat Bots Only 12 | . 5 2 2 12 . 1 1 . . . . . . . . 2 . . . . . . 7 4 Max Kills in Single Turn 6 | 1 2 2 1 2 . 1 1 . . . 1 . . 1 . 1 . 1 . 1 1 1 3 6 Gunslinging . | . . . . . . . . . . . . . . . . . . . . . . . . . Exploded 4 | . 2 2 1 2 . . . . . . . . . . . . . . . . . . 2 4 Melee 1 | . . . . . . . . . . . . . . . . 1 . . . . . . . . Uniques/NPCs Destroyed 1 | . . . . . . . . . . . . . . . . 1 . . . . . . . . A7 (-4/Extension) Combat | -11 -10 -9 -9 -9 -9 -7 -7 -7 -6 -6 -6 -5 -5 -5 -4 -4 -4 -4 -4 -3 -2 -2 -1 -1 -------- Run | Scr Mat Mat Sto Gar Rec Fac Low Low Fac Was Fac Fac Gar Fac Fac Ext Cet Arc Hub Res Res Qua Acc Com Damage Taken 11402 | . 591 300 367 694 . 816 764 155 40 . 202 24 501 475 . 674 99 110 102 1554 530 793 1621 990 Core 4757 | . 134 61 15 166 . 71 403 138 . . 12 . 118 235 . 115 32 25 . 718 289 370 921 934 Absorbed by Shields 41 | . . . . . . . . . . . . . 10 . . 31 . . . . . . . . Core Remaining (%) 59 | 100 46 . . . 39 . . 12 . . 98 . . 64 . . . . 85 44 . 49 . . Volleys Fired 168 | 3 38 21 16 36 2 25 6 . 4 . 5 . . . . . . . . . 1 3 7 1 Largest 2 | 1 2 2 2 2 2 2 2 . 1 . 1 . . . . . . . . . 1 1 1 1 Hottest 123 | 40 60 75 101 90 75 123 123 . 55 . 55 . . . . . . . . . 120 49 70 . Shots Fired 237 | 3 55 26 20 58 4 39 9 . 4 . 7 . . . . . . . . . 1 3 7 1 Gun 133 | 3 43 6 4 27 2 31 6 . 4 . 7 . . . . . . . . . . . . . Cannon 67 | . . 15 14 24 2 8 3 . . . . . . . . . . . . . 1 . . . Launcher 37 | . 12 5 2 7 . . . . . . . . . . . . . . . . . 3 7 1 Special . | . . . . . . . . . . . . . . . . . . . . . . . . . Kinetic 112 | . 36 20 4 24 2 26 . . . . . . . . . . . . . . . . . . Thermal 16 | . . 1 . 2 2 6 3 . . . . . . . . . . . . . 1 . . 1 Explosive 36 | . 12 5 2 7 . . . . . . . . . . . . . . . . . 3 7 . Electromagnetic 73 | 3 7 . 14 25 . 7 6 . 4 . 7 . . . . . . . . . . . . . Robot Hit Streak 34 | 2 34 4 13 19 1 14 17 . 3 . 3 . . . . . . . . . 4 . 3 . Robot Miss Streak 4 | 1 2 1 1 4 3 3 1 . 2 . 1 . . . . . . . . . . . 2 . Penetration Max . | . . . . . . . . . . . . . . . . . . . . . . . . . Secondary Targets . | . . . . . . . . . . . . . . . . . . . . . . . . . Shots Hit Robots 233 | 2 39 13 11 43 1 31 8 . 2 . 5 . . 10 . 38 . 2 . 3 13 4 8 . Core Hits 151 | 2 26 11 7 30 . 17 4 . 1 . 1 . . 5 . 15 . 1 . 2 4 4 15 6 Critical Hits 4 | . . . . . . 1 . . . . . . . 1 . 1 . . . . 1 . . . Critical Kills . | . . . . . . . . . . . . . . . . . . . . . . . . . Critical Parts Destroyed 2 | . . . . . . . . . . . . . . 1 . 1 . . . . . . . . Melee Attacks 125 | . . . . . 8 1 . . . . 7 . . 25 . 46 . 6 . 3 14 4 11 . Impact 7 | . . . . . . . . . . . 7 . . . . . . . . . . . . . Slashing 118 | . . . . . 8 1 . . . . . . . 25 . 46 . 6 . 3 14 4 11 . Piercing . | . . . . . . . . . . . . . . . . . . . . . . . . . Sneak Attacks 32 | . . . . . . . . . . . . . . 6 . 14 . 2 . 2 2 4 2 . Combat Hostiles 2 | . . . . . . . . . . . . . . . . 2 . . . . . . . . Follow-up Attacks 6 | . . . . . . . . . . . . . . . . 5 . 1 . . . . . . Damage Inflicted 17876 | 25 1156 392 336 1185 . 588 391 . 74 . 164 . . 1124 . 2950 . 344 . 285 727 547 1954 5634 Guns 1664 | 25 460 38 50 334 . 449 134 . 74 . 100 . . . . . . . . . . . . . Cannons 862 | . . 181 166 293 . 139 41 . . . . . . . . . . . . . 42 . . . Explosions 9028 | . 696 173 120 558 . . 207 . . . 64 . . . . . . . . . . . 1590 5620 Melee 6299 | . . . . . . . . . . . . . . 1124 . 2950 . 344 . 285 685 547 364 . Ramming 23 | . . . . . . . 9 . . . . . . . . . . . . . . . . 14 Kinetic 1280 | . 383 219 36 293 . 349 . . . . . . . . . . . . . . . . . . Thermal 6103 | . 55 . 49 112 . 120 41 . . . 64 . . . . . . . . . 42 . . 5620 Explosive 2944 | . 641 173 71 469 . . . . . . . . . . . . . . . . . . 1590 . Electromagnetic 1227 | 25 77 . 180 311 . 119 341 . 74 . 100 . . . . . . . . . . . . . Impact . | . . . . . . . . . . . . . . . . . . . . . . . . . Slashing 6299 | . . . . . . . . . . . . . . 1124 . 2950 . 344 . 285 685 547 364 . Piercing . | . . . . . . . . . . . . . . . . . . . . . . . . . Highest Corruption 7 | . . 3 3 7 7 6 6 6 . 7 7 . . . . . . . . 4 2 2 2 2 Average Corruption 5 | . . 2 3 6 7 4 6 6 . 7 7 . . . . . . . . 2 1 2 1 2 Corruption Purged . | . . . . . . . . . . . . . . . . . . . . . . . . . Effects 71 | . . . 2 27 7 4 12 . . 1 12 . . . . . . . . 2 1 2 1 . Message Errors 18 | . . . . 5 1 . 5 . . . 2 . . . . . . . . 2 . 2 1 . Matter Fused 14 | . . . . 5 3 1 2 . . 1 2 . . . . . . . . . . . . . Heat Flow Errors 9 | . . . 1 4 . . 1 . . . 3 . . . . . . . . . . . . . Energy Discharges 5 | . . . 1 3 1 . . . . . . . . . . . . . . . . . . . Data Loss (minor) 9 | . . . . 4 . 1 2 . . . 1 . . . . . . . . . 1 . . . Data Loss (major) 4 | . . . . 1 1 . 2 . . . . . . . . . . . . . . . . . Misfires 4 | . . . . 2 . . . . . . 2 . . . . . . . . . . . . . Targeting Errors 8 | . . . . 3 1 2 . . . . 2 . . . . . . . . . . . . . Overload Shots . | . . . . . . . . . . . . . . . . . . . . . . . . . Overflow Damage 2028 | . 7 . . 23 . . 67 . . . . . . 187 . 312 . 138 . . 82 44 142 1026 Projectiles . | . . . . . . . . . . . . . . . . . . . . . . . . . Explosions 1261 | . 7 . . 23 . . 67 . . . . . . . . . . . . . . . 138 1026 Melee 767 | . . . . . . . . . . . . . . 187 . 312 . 138 . . 82 44 4 . Knockbacks 1 | . . 1 . . . . . . . . . . . . . . . . . . . . . . Impact . | . . . . . . . . . . . . . . . . . . . . . . . . . Kinetic 1 | . . 1 . . . . . . . . . . . . . . . . . . . . . . Secondary . | . . . . . . . . . . . . . . . . . . . . . . . . . Self-Inflicted Damage 1145 | . 66 . . 15 . . 11 . . . 14 . . . . . . . . . . 70 72 897 Shots 8 | . 2 . . 1 . . 1 . . . 1 . . . . . . . . . . 1 1 1 Rammed 3 | . . . . . . . 1 . . . . . . . . . . . . . . . . 2 Targets Rammed 3 | . . . . . . . 1 . . . . . . . . . . . . . . . . 2 Kicked . | . . . . . . . . . . . . . . . . . . . . . . . . . Crushed . | . . . . . . . . . . . . . . . . . . . . . . . . . Highest Temperature 289 | . 98 24 159 145 18 239 225 . 32 . 289 . 15 . 20 107 . . . . 32 . 34 . Average Temperature 51 | . 41 9 49 50 9 92 102 . 15 . 107 . 7 . 11 28 . . . . 24 . 17 . Received Heat Transfer 1629 | . 300 120 105 150 . 156 273 . 21 . 12 . 120 72 . 39 18 18 9 117 36 . 63 . Siege Activations . | . . . . . . . . . . . . . . . . . . . . . . . . . Robots Corrupted 3 | . . . 1 . . 1 1 . . . . . . . . . . . . . . . . . Combat Hostiles 3 | . . . 1 . . 1 1 . . . . . . . . . . . . . . . . . Parts Fried 6 | . . . 3 . . . 2 . . . . . . . . 1 . . . . . . . . Impact Corruptions . | . . . . . . . . . . . . . . . . . . . . . . . . . Robots Melted . | . . . . . . . . . . . . . . . . . . . . . . . . . Combat Hostiles . | . . . . . . . . . . . . . . . . . . . . . . . . . Parts Melted 1 | . . . . . . 1 . . . . . . . . . . . . . . . . . . Heat Transferred 635 | . 50 . 50 150 . 224 74 . . . 50 . . . . . . . . . 37 . . . Parts Sabotaged . | . . . . . . . . . . . . . . . . . . . . . . . . . Parts Stolen . | . . . . . . . . . . . . . . . . . . . . . . . . . Parts Stripped . | . . . . . . . . . . . . . . . . . . . . . . . . . Power Chain Reactions 4 | . 1 . 1 1 . . . . . . 1 . . . . . . . . . . . . . Missiles Intercepted . | . . . . . . . . . . . . . . . . . . . . . . . . . Alert | -11 -10 -9 -9 -9 -9 -7 -7 -7 -6 -6 -6 -5 -5 -5 -4 -4 -4 -4 -4 -3 -2 -2 -1 -1 ------- Run | Scr Mat Mat Sto Gar Rec Fac Low Low Fac Was Fac Fac Gar Fac Fac Ext Cet Arc Hub Res Res Qua Acc Com Peak Influence 1163 | 5 440 343 217 758 468 1163 . . 262 136 180 86 76 269 97 539 196 143 81 125 121 258 504 352 Average Influence 315 | 2 155 198 144 523 385 1019 . . 215 120 140 84 56 109 58 373 189 111 63 37 86 195 256 323 Maximum Alert Level 4 | . 2 1 1 3 2 4 . . 1 . . . . 1 . 2 . . . . . 1 2 1 Low Security (%) 49 | 100 47 69 94 11 . . . . 28 100 100 100 100 79 100 13 100 100 100 100 100 41 51 . Level 1 22 | . 50 30 5 9 74 . . . 71 . . . . 20 . 34 . . . . . 58 24 100 Level 2 15 | . 2 . . 61 25 . . . . . . . . . . 51 . . . . . . 23 . Level 3 9 | . . . . 17 . 68 . . . . . . . . . . . . . . . . . . Level 4 3 | . . . . . . 31 . . . . . . . . . . . . . . . . . . Level 5 . | . . . . . . . . . . . . . . . . . . . . . . . . . High Security . | . . . . . . . . . . . . . . . . . . . . . . . . . Max Security . | . . . . . . . . . . . . . . . . . . . . . . . . . Squads Dispatched 28 | . 5 1 . . . 2 . . 2 . 2 . . 1 2 2 . . 1 3 1 . 4 2 Investigation 7 | . 2 1 . . . . . . 1 . . . . 1 2 . . . . . . . . . Extermination 4 | . . . . . . 1 . . 1 . 1 . . . . . . . . 1 . . . . Reinforcement 13 | . 3 . . . . 1 . . . . 1 . . . . 2 . . 1 2 1 . . 2 Assault 1 | . . . . . . . . . . . . . . . . . . . . . . . 1 . Garrison 3 | . . . . . . . . . . . . . . . . . . . . . . . 3 . Intercept . | . . . . . . . . . . . . . . . . . . . . . . . . . Construction Impeded 1 | . . . . . . . . . . . . . . . . 1 . . . . . . . . Haulers Reinforced 1 | . . . . . . 1 . . . . . . . . . . . . . . . . . . Stealth | -11 -10 -9 -9 -9 -9 -7 -7 -7 -6 -6 -6 -5 -5 -5 -4 -4 -4 -4 -4 -3 -2 -2 -1 -1 --------- Run | Scr Mat Mat Sto Gar Rec Fac Low Low Fac Was Fac Fac Gar Fac Fac Ext Cet Arc Hub Res Res Qua Acc Com Distress Signals 16 | . 1 1 1 . . . . . 1 . . . . 2 . 1 1 . 1 2 1 . 3 1 Communications Jammed . | . . . . . . . . . . . . . . . . . . . . . . . . . Distress Signals . | . . . . . . . . . . . . . . . . . . . . . . . . . Times Spotted 292 | . 15 9 6 18 11 6 24 4 5 4 13 4 25 22 . 22 5 4 9 34 8 10 23 11 Peak Tracking Total 21 | . 5 4 6 8 6 3 12 4 7 4 6 4 21 9 . 6 5 4 9 19 6 8 12 11 Tactical Retreats 32 | . 2 . . 1 . . 6 . . . 2 . 3 8 . 1 . . . 5 . 3 1 . Traps | -11 -10 -9 -9 -9 -9 -7 -7 -7 -6 -6 -6 -5 -5 -5 -4 -4 -4 -4 -4 -3 -2 -2 -1 -1 ------- Run | Scr Mat Mat Sto Gar Rec Fac Low Low Fac Was Fac Fac Gar Fac Fac Ext Cet Arc Hub Res Res Qua Acc Com Traps Triggered 17 | . 2 2 . . . 1 . . 1 . 1 . 3 1 . 4 . . . 1 . . 1 . Indirectly . | . . . . . . . . . . . . . . . . . . . . . . . . . Trap Hack Attempts . | . . . . . . . . . . . . . . . . . . . . . . . . . Triggered . | . . . . . . . . . . . . . . . . . . . . . . . . . Disarmed . | . . . . . . . . . . . . . . . . . . . . . . . . . Reprogrammed . | . . . . . . . . . . . . . . . . . . . . . . . . . Reused 2 | . . . . . . . 1 1 . . . . . . . . . . . . . . . . Traps Extracted . | . . . . . . . . . . . . . . . . . . . . . . . . . Installed 2 | . . . . . . . 1 1 . . . . . . . . . . . . . . . . Triggered 3 | . . . . . . 1 1 1 . . . . . . . . . . . . . . . . Machines | -11 -10 -9 -9 -9 -9 -7 -7 -7 -6 -6 -6 -5 -5 -5 -4 -4 -4 -4 -4 -3 -2 -2 -1 -1 ---------- Run | Scr Mat Mat Sto Gar Rec Fac Low Low Fac Was Fac Fac Gar Fac Fac Ext Cet Arc Hub Res Res Qua Acc Com Machines Disabled 20 | . 6 . 1 1 1 . . . 1 . 2 . . 1 . 2 . 1 . . . 2 . 2 Max in Single Turn 5 | . 5 . 1 1 1 . . . 1 . 2 . . 1 . 1 . 1 . . . 1 . 2 Garrison Access 1 | . . . . . . . . . . . . . . . . . . . . . 1 . . . Garrison Relay 1 | . . . . 1 . . . . . . . . . . . . . . . . . . . . Machines Sabotaged . | . . . . . . . . . . . . . . . . . . . . . . . . . Garrisons Compromised . | . . . . . . . . . . . . . . . . . . . . . . . . . Overloaded Fab Kills . | . . . . . . . . . . . . . . . . . . . . . . . . . Fab Network Shutdowns . | . . . . . . . . . . . . . . . . . . . . . . . . . Hacking | -11 -10 -9 -9 -9 -9 -7 -7 -7 -6 -6 -6 -5 -5 -5 -4 -4 -4 -4 -4 -3 -2 -2 -1 -1 --------- Run | Scr Mat Mat Sto Gar Rec Fac Low Low Fac Was Fac Fac Gar Fac Fac Ext Cet Arc Hub Res Res Qua Acc Com Machines Accessed 61 | . 5 4 4 . 7 3 . . 2 . 3 1 . 6 5 6 1 . 1 2 2 7 1 1 Terminals 49 | . 4 4 3 . 5 3 . . . . 3 . . 4 3 6 1 . 1 2 1 7 1 1 Fabricators 1 | . . . . . . . . . 1 . . . . . . . . . . . . . . . Repair Stations 2 | . . . . . . . . . 1 . . . . 1 . . . . . . . . . . Recycling Units 4 | . 1 . . . 2 . . . . . . . . . 1 . . . . . . . . . Scanalyzers 1 | . . . . . . . . . . . . . . . 1 . . . . . . . . . Garrison Access 4 | . . . 1 . . . . . . . . 1 . 1 . . . . . . 1 . . . Total Hacks 177 | . 15 14 11 . 17 7 . . 4 . 7 1 . 13 13 24 3 . 3 8 5 23 4 5 Successful 94 | . 10 9 6 . 5 3 . . 3 . 3 1 . 6 5 11 2 . . 4 3 20 1 2 Failed 81 | . 5 4 5 . 12 4 . . 1 . 4 . . 7 7 13 1 . 3 4 2 3 3 3 Catastrophic 11 | . . . . . 4 . . . . . 1 . . . . 1 . . 1 1 . . 2 1 Database Lockouts 2 | . . 1 . . . . . . . . . . . . 1 . . . . . . . . . Manual 139 | . 14 14 5 . 16 4 . . 1 . 7 . . 9 12 18 1 . 4 9 4 14 4 3 Terminals 160 | . 14 14 10 . 14 7 . . . . 7 . . 10 10 24 3 . 3 8 4 23 4 5 Fabricators 1 | . . . . . . . . . 1 . . . . . . . . . . . . . . . Repair Stations 5 | . . . . . . . . . 3 . . . . 2 . . . . . . . . . . Recycling Units 5 | . 1 . . . 3 . . . . . . . . . 1 . . . . . . . . . Scanalyzers 2 | . . . . . . . . . . . . . . . 2 . . . . . . . . . Garrison Access 4 | . . . 1 . . . . . . . . 1 . 1 . . . . . . 1 . . . Terminal Hacks 38 | . 3 3 1 . 2 3 . . . . 1 . . 2 1 5 1 . . 1 2 11 1 1 Record 4 | . . . . . 1 . . . . . . . . . . . . . . . . 3 . . Part Schematic 3 | . . 1 . . . . . . . . . . . . 1 1 . . . . . . . . Robot Schematic 1 | . . . . . . . . . . . . . . . . . . . . . . 1 . . Prototype ID Bank 3 | . 1 . . . . . . . . . . . . 1 . . . . . . . 1 . . Open Door 6 | . . . 1 . . . . . . . . . . . . 3 1 . . . . 1 . . Level Access Points 5 | . . . . . 1 . . . . . . . . 1 . . . . . 1 1 1 . . Branch Access Points 2 | . . . . . . 1 . . . . . . . . . . . . . . 1 . . . Terminal Index 5 | . 1 1 . . . . . . . . 1 . . . . . . . . . . 1 . 1 Fabricator Index 2 | . . . . . . . . . . . . . . . . . . . . . . 1 1 . Unreport Threat 1 | . . . . . . 1 . . . . . . . . . . . . . . . . . . Security Status 1 | . . . . . . . . . . . . . . . . . . . . . . 1 . . Recall Reinforcements 3 | . 1 . . . . 1 . . . . . . . . . 1 . . . . . . . . Hauler Manifests 1 | . . 1 . . . . . . . . . . . . . . . . . . . . . . Registered Components 1 | . . . . . . . . . . . . . . . . . . . . . . 1 . . Fabricator Hacks . | . . . . . . . . . . . . . . . . . . . . . . . . . Repair Station Hacks 3 | . . . . . . . . . 2 . . . . 1 . . . . . . . . . . Scan Component 2 | . . . . . . . . . 1 . . . . 1 . . . . . . . . . . Repair 1 | . . . . . . . . . 1 . . . . . . . . . . . . . . . Recycling Unit Hacks . | . . . . . . . . . . . . . . . . . . . . . . . . . Scanalyzer 2 | . . . . . . . . . . . . . . . 2 . . . . . . . . . Insert Component 1 | . . . . . . . . . . . . . . . 1 . . . . . . . . . Analyze 1 | . . . . . . . . . . . . . . . 1 . . . . . . . . . Garrison Access Hacks 3 | . . . 1 . . . . . . . . 1 . . . . . . . . 1 . . . Unlock Access 2 | . . . 1 . . . . . . . . 1 . . . . . . . . . . . . Seal Access 1 | . . . . . . . . . . . . . . . . . . . . . 1 . . . Unauthorized Hacks 119 | . 17 14 9 . 8 . . . 2 . 8 . . 8 5 16 2 . . 9 . 19 . 2 Terminals 42 | . 6 6 4 . 1 . . . . . 2 . . 2 1 6 1 . . 3 . 9 . 1 Track 14 | . 2 3 2 . . . . . . . . . . 1 . 1 . . . 1 . 4 . . Assimilate 2 | . 1 . . . . . . . . . 1 . . . . . . . . . . . . . Botnet 24 | . 3 3 2 . 1 . . . . . 1 . . 1 1 4 . . . 2 . 5 . 1 Disrupt 2 | . . . . . . . . . . . . . . . . 1 1 . . . . . . . Fabricators 1 | . . . . . . . . . 1 . . . . . . . . . . . . . . . Download 1 | . . . . . . . . . 1 . . . . . . . . . . . . . . . Repair Stations . | . . . . . . . . . . . . . . . . . . . . . . . . . Recycling Units 4 | . 1 . . . 2 . . . . . . . . . 1 . . . . . . . . . Tunnel 4 | . 1 . . . 2 . . . . . . . . . 1 . . . . . . . . . Scanalyzers . | . . . . . . . . . . . . . . . . . . . . . . . . . Garrison Access 1 | . . . . . . . . . . . . . . 1 . . . . . . . . . . Eject 1 | . . . . . . . . . . . . . . 1 . . . . . . . . . . Data Cores Recovered 1 | . . . . . . . . . . . 1 . . . . . . . . . . . . . Used . | . . . . . . . . . . . . . . . . . . . . . . . . . Hacking Detections 47 | . 4 3 4 . 5 2 . . 1 . 3 . . 5 3 6 1 . 1 2 1 5 1 . Full Trace Events . | . . . . . . . . . . . . . . . . . . . . . . . . . Feedback Events . | . . . . . . . . . . . . . . . . . . . . . . . . . Feedback Blocked . | . . . . . . . . . . . . . . . . . . . . . . . . . Robot Schematics Acquired 2 | . . . . . . . . . 1 . . . . . . . . . . . . 1 . . Robots Built . | . . . . . . . . . . . . . . . . . . . . . . . . . Matter . | . . . . . . . . . . . . . . . . . . . . . . . . . Time . | . . . . . . . . . . . . . . . . . . . . . . . . . Total Robot Build Rating . | . . . . . . . . . . . . . . . . . . . . . . . . . Part Schematics Acquired 4 | . . 1 . . . . . . . . . . . . 2 1 . . . . . . . . Parts Built . | . . . . . . . . . . . . . . . . . . . . . . . . . Matter . | . . . . . . . . . . . . . . . . . . . . . . . . . Time . | . . . . . . . . . . . . . . . . . . . . . . . . . Total Part Build Rating . | . . . . . . . . . . . . . . . . . . . . . . . . . Parts Repaired 1 | . . . . . . . . . 1 . . . . . . . . . . . . . . . Time 38 | . . . . . . . . . 38 . . . . . . . . . . . . . . . Parts Recycled . | . . . . . . . . . . . . . . . . . . . . . . . . . Recycled Matter . | . . . . . . . . . . . . . . . . . . . . . . . . . Retrieved Matter . | . . . . . . . . . . . . . . . . . . . . . . . . . Retrieved Components . | . . . . . . . . . . . . . . . . . . . . . . . . . Parts Scanalyzed 1 | . . . . . . . . . . . . . . . 1 . . . . . . . . . Part Schematics Acquired 1 | . . . . . . . . . . . . . . . 1 . . . . . . . . . Parts Damaged . | . . . . . . . . . . . . . . . . . . . . . . . . . Bothacking | -11 -10 -9 -9 -9 -9 -7 -7 -7 -6 -6 -6 -5 -5 -5 -4 -4 -4 -4 -4 -3 -2 -2 -1 -1 ------------ Run | Scr Mat Mat Sto Gar Rec Fac Low Low Fac Was Fac Fac Gar Fac Fac Ext Cet Arc Hub Res Res Qua Acc Com Used RIF Installer 2 | . . . . 1 . . . . . . . . 1 . . . . . . . . . . . Program Shield 1 | . . . . . . . . . . . . . 1 . . . . . . . . . . . Robots Hacked . | . . . . . . . . . . . . . . . . . . . . . . . . . Non-combat . | . . . . . . . . . . . . . . . . . . . . . . . . . Combat . | . . . . . . . . . . . . . . . . . . . . . . . . . Robot Hacks Applied . | . . . . . . . . . . . . . . . . . . . . . . . . . Relay Couplers Released 7 | . . . . 4 . . . . . . . . . 3 . . . . . . . . . . Ejected 3 | . . . . . . . . . . . . . . 3 . . . . . . . . . . Machine Destruction 4 | . . . . 4 . . . . . . . . . . . . . . . . . . . . Robots Rewired 4 | . . . . . . . . . . . . . . . . 4 . . . . . . . . Allies Hacked . | . . . . . . . . . . . . . . . . . . . . . . . . . Hacks Repelled . | . . . . . . . . . . . . . . . . . . . . . . . . . Allies | -11 -10 -9 -9 -9 -9 -7 -7 -7 -6 -6 -6 -5 -5 -5 -4 -4 -4 -4 -4 -3 -2 -2 -1 -1 -------- Run | Scr Mat Mat Sto Gar Rec Fac Low Low Fac Was Fac Fac Gar Fac Fac Ext Cet Arc Hub Res Res Qua Acc Com Total Allies 10 | . . . . . . . . . . 1 1 . . . . 8 . . . . . . . . Largest Group 7 | . . . . . . . . . . 1 1 . . . . 7 . . . . . . . . Highest-Rated Group 396 | . . . . . . . . . . 31 26 . . . . 396 . . . . . . . . Highest-Rated Ally 156 | . . . . . . . . . . 31 26 . . . . 156 . . . . . . . . Total Orders 1 | . . . . . . . . . . . . . . . . . 1 . . . . . . . EXPLORE 1 | . . . . . . . . . . . . . . . . . 1 . . . . . . . Ally Attacks 85 | . . . . . . . . . . . . . . . . 85 . . . . . . . . Total Damage 2513 | . . . . . . . . . . . . . . . . 2513 . . . . . . . . Kills 14 | . . . . . . . . . . . . . . . . 14 . . . . . . . . Allies Corrupted . | . . . . . . . . . . . . . . . . . . . . . . . . . Allies Melted . | . . . . . . . . . . . . . . . . . . . . . . . . . Intel | -11 -10 -9 -9 -9 -9 -7 -7 -7 -6 -6 -6 -5 -5 -5 -4 -4 -4 -4 -4 -3 -2 -2 -1 -1 ------- Run | Scr Mat Mat Sto Gar Rec Fac Low Low Fac Was Fac Fac Gar Fac Fac Ext Cet Arc Hub Res Res Qua Acc Com Robot Analysis Total . | . . . . . . . . . . . . . . . . . . . . . . . . . Derelict Logs Recovered 1 | . . . . . . . 1 . . . . . . . . . . . . . . . . . Drone Launches 4 | . . . . . . . . . . . . . . . . 2 . . . . . 2 . . Drone Recoveries . | . . . . . . . . . . . . . . . . . . . . . . . . . Exploration | -11 -10 -9 -9 -9 -9 -7 -7 -7 -6 -6 -6 -5 -5 -5 -4 -4 -4 -4 -4 -3 -2 -2 -1 -1 ------------- Run | Scr Mat Mat Sto Gar Rec Fac Low Low Fac Was Fac Fac Gar Fac Fac Ext Cet Arc Hub Res Res Qua Acc Com Turns Passed 6610 | 59 332 610 326 818 249 594 513 17 274 43 260 62 93 438 120 599 32 27 45 275 272 227 271 54 Spaces Moved 7298 | 49 229 356 121 416 139 271 404 28 345 94 559 147 277 705 347 845 82 32 118 514 367 379 373 101 Core 740 | 14 . . . . . . 252 28 27 . . . . . . . . . . 60 145 20 93 101 Treads 1182 | . . 83 121 416 139 271 152 . . . . . . . . . . . . . . . . . Legs . | . . . . . . . . . . . . . . . . . . . . . . . . . Wheels 537 | 35 229 273 . . . . . . . . . . . . . . . . . . . . . . Hover 814 | . . . . . . . . . . . . . . . . . . . . 151 170 213 280 . Flight 4025 | . . . . . . . . . 318 94 559 147 277 705 347 845 82 32 118 303 52 146 . . Fastest Speed 27 | 50 80 90 160 160 160 160 50 50 34 34 29 29 27 31 28 28 34 34 37 34 30 30 48 50 Average Speed 63 | 74 86 117 172 160 160 165 98 50 37 34 31 31 30 35 29 28 34 34 37 43 56 45 49 50 Slowest Speed 200 | 100 90 180 180 200 160 180 180 50 50 34 34 32 37 40 31 34 34 37 40 200 70 120 100 50 Overloaded Moves . | . . . . . . . . . . . . . . . . . . . . . . . . . Propulsion Burnouts . | . . . . . . . . . . . . . . . . . . . . . . . . . Robots Hopped 26 | . . . . . . . . . 1 . . . 7 . . 4 1 . 2 9 2 . . . Cave-ins Triggered . | . . . . . . . . . . . . . . . . . . . . . . . . . Teleports 1 | . . . . . . . . . . . . . . . . . . . . . . 1 . . Exploration Rate (%) 31 | 4 40 34 19 73 37 9 55 10 11 67 17 5 50 28 8 73 74 71 16 22 16 35 14 6 Regions Visited 24 Branch Regions 10 Pre-discovered Areas 4 | . 1 . . . 2 . . . . . . . . . 1 . . . . . . . . . Known Exits Taken 9 | . . . 1 . 1 1 . . . . . 1 . 1 . . . . . 1 1 1 1 . Unknown Exits Taken 11 | 1 1 1 . . . . 1 1 . . 1 . . . 1 1 1 1 1 . . . . . Scrap Searched 4 | . . . . . . . 3 1 . . . . . . . . . . . . . . . . Spaces Dug 44 | . . 9 . 1 8 1 . . . . 4 . . 13 . . . 1 . . . . 7 . Terrain Destroyed 538 | . 103 35 19 14 8 1 15 . . . 4 . . 13 . . . 1 . . . 35 61 229 Melee 34 | . . . . . 8 1 . . . . 4 . . 13 . . . 1 . . . . 7 . Projectile . | . . . . . . . . . . . . . . . . . . . . . . . . . AOE 504 | . 103 35 19 14 . . 15 . . . . . . . . . . . . . . 35 54 229 Actions | -11 -10 -9 -9 -9 -9 -7 -7 -7 -6 -6 -6 -5 -5 -5 -4 -4 -4 -4 -4 -3 -2 -2 -1 -1 --------- Run | Scr Mat Mat Sto Gar Rec Fac Low Low Fac Was Fac Fac Gar Fac Fac Ext Cet Arc Hub Res Res Qua Acc Com Total 8905 | 68 306 523 217 514 149 373 513 30 485 104 622 163 275 861 362 1161 84 40 116 555 409 431 439 105 Wait 794 | . 26 113 74 27 . 22 79 . 111 11 23 . 1 77 2 190 4 . . 12 6 . 16 . Move 7225 | 48 228 355 120 414 138 270 403 27 343 93 558 146 262 704 346 837 79 31 113 497 362 378 372 101 Hop 22 | . . . . . . . . . 1 . . . 6 . . 3 1 . 2 7 2 . . . Pick Up 212 | 11 8 16 2 16 . 21 4 1 12 . 8 7 . 26 5 23 . 2 . 13 9 14 14 . Fast Attach . | . . . . . . . . . . . . . . . . . . . . . . . . . Attach 135 | 6 6 5 . 8 . 10 . . 11 . 6 6 2 13 3 6 . 1 . 13 11 19 8 1 Detach 11 | . . . . . . . . . 1 . . . . . . . . . . 3 1 6 . . Swap 49 | . . 6 4 5 1 15 1 . . . 1 . . 2 4 9 . . . . . . 1 . Drop 114 | . . 7 1 8 . 9 14 1 2 . 3 4 . 15 2 20 . 1 1 7 3 6 10 . Fire 168 | 3 38 21 16 36 2 25 6 . 4 . 5 . . . . . . . . . 1 3 7 1 Melee 114 | . . . . . 8 1 . . . . 7 . . 24 . 37 . 5 . 3 14 4 11 . Ram 2 | . . . . . . . . . . . . . . . . . . . . . . . . 2 Kick . | . . . . . . . . . . . . . . . . . . . . . . . . . Crush 1 | . . . . . . . 1 . . . . . . . . . . . . . . . . . Escape Stasis 33 | . . . . . . . . . . . 11 . 4 . . 18 . . . . . . . . Rewire 21 | . . . . . . . 4 . . . . . . . . 17 . . . . . . . . Trap 2 | . . . . . . . 1 1 . . . . . . . . . . . . . . . . Miscellaneous 2 | . . . . . . . . . . . . . . . . 1 . . . . . 1 . . Route ------- -11/Scrapyard -10/Materials -9/Materials (discovered 2 exits: [*Mat] / *Sto) -9/Storage -9/Garrison (discovered 3 exits: *Rec x3) -9/Recycling -7/Factory (discovered 2 exits: *Low x2) -7/Lower Caves -7/Lower Caves -6/Factory -6/Waste -6/Factory -5/Factory -5/Garrison (discovered 3 exits: *Fac x3) -5/Factory (discovered 4 exits: *Fac x4) -4/Factory (discovered 2 exits: *Res / *Ext) -4/Extension (discovered 2 exits: *Res / *Cet) -4/Cetus -4/Archives -4/Hub_04(d) -3/Research (discovered 3 exits: *Res x3) -2/Research (discovered 5 exits: Acc x3 / *Qua x2) -2/Quarantine -1/Access -1/Command History --------- Turn | Location | Event 2 | -11/Scrapyard | Met Revision 17 22 | -11/Scrapyard | Discovered new exit (range 15) 60 | -11/Scrapyard | Entered Materials 234 | -10/Materials | Discovered new exit (range 10) 307 | -10/Materials | Build established: Mutant 390 | -10/Materials | Core integrity fell below 50% 392 | -10/Materials | Entered another Materials area 392 | -9/Materials | Evolved 2 slots: Propulsion x1, Utility x1 975 | -9/Materials | Discovered new exit (range 11) 976 | -9/Materials | Discovered new exit (range 13) 980 | -9/Materials | Central database locked down 1002 | -9/Materials | Entered Storage 1327 | -9/Storage | Identified exit to Garrison 1328 | -9/Storage | Entered Garrison 1402 | -9/Garrison | Triggered checkpoint 1516 | -9/Garrison | Destroyed 12 combat bots 1544 | -9/Garrison | Triggered checkpoint 1631 | -9/Garrison | Discovered new exit (range 15) 1738 | -9/Garrison | Triggered checkpoint 1792 | -9/Garrison | Triggered checkpoint 1799 | -9/Garrison | Core integrity fell below 50% 1948 | -9/Garrison | Discovered new exit (range 9) 2103 | -9/Garrison | Build established: Scavenger-Mutant 2108 | -9/Garrison | Discovered new exit (range 10) 2138 | -9/Garrison | Installed Relay Interface Framework 2146 | -9/Garrison | Entered Recycling 2205 | -9/Recycling | Spotter reported a threat 2235 | -9/Recycling | Spotter reported a threat 2249 | -9/Recycling | Spotter reported a threat 2252 | -9/Recycling | Spotter reported a threat 2254 | -9/Recycling | Spotter reported a threat 2258 | -9/Recycling | Spotter reported a threat 2268 | -9/Recycling | Spotter reported a threat 2284 | -9/Recycling | Spotter reported a threat 2288 | -9/Recycling | Spotter reported a threat 2296 | -9/Recycling | Spotter reported a threat 2302 | -9/Recycling | Spotter reported a threat 2305 | -9/Recycling | Spotter reported a threat 2321 | -9/Recycling | Spotter reported a threat 2348 | -9/Recycling | Identified exit to Factory 2395 | -9/Recycling | Entered Factory 2395 | -7/Factory | Evolved 4 slots: Propulsion x1, Utility x3 2629 | -7/Factory | Identified exit to Lower Caves 2989 | -7/Factory | Entered Lower Caves 2995 | -7/Lower Caves | Learned Factory emergency access door positions 3273 | -7/Lower Caves | Attracted the attention of an 0b10 checkpoint 3283 | -7/Lower Caves | Attracted the attention of an 0b10 outpost 3341 | -7/Lower Caves | Core integrity fell below 50% 3497 | -7/Lower Caves | Discovered new exit (range 5) 3502 | -7/Lower Caves | Entered another Lower Caves area 3511 | -7/Lower Caves | Core integrity fell below 20% 3511 | -7/Lower Caves | Discovered new exit (range 15) 3519 | -7/Lower Caves | Entered Factory 3519 | -6/Factory | Evolved 2 slots: Power x1, Propulsion x1 3577 | -6/Factory | Build established: Mutant 3694 | -6/Factory | Repaired Adv. Weight Redist. System 3793 | -6/Factory | Sucked down chute 3793 | -6/Factory | Entered Waste 3794 | -6/Waste | Met a frightened Derelict 3801 | -6/Waste | Spotted C-40 Crusher 3807 | -6/Waste | Spotted C-40 Crusher 3808 | -6/Waste | EMP discharged 3809 | -6/Waste | Spotted C-40 Crusher 3814 | -6/Waste | Spotted C-40 Crusher 3817 | -6/Waste | Discovered new exit (range 14) 3836 | -6/Waste | Entered Factory 4087 | -6/Factory | Discovered new exit (range 10) 4096 | -6/Factory | Entered another Factory area 4096 | -5/Factory | Evolved 2 slots: Propulsion x1, Utility x1 4157 | -5/Factory | Identified exit to Garrison 4158 | -5/Factory | Entered Garrison 4174 | -5/Garrison | Triggered checkpoint 4175 | -5/Garrison | Triggered checkpoint 4185 | -5/Garrison | Discovered new exit (range 14) 4214 | -5/Garrison | Discovered new exit (range 14) 4232 | -5/Garrison | Triggered checkpoint 4242 | -5/Garrison | Discovered new exit (range 10) 4248 | -5/Garrison | Expanded RIF knowledge: Program Shield 4251 | -5/Garrison | Entered Factory 4265 | -5/Factory | Lost 7 parts (2p3n2u) 4456 | -5/Factory | Identified exit to Factory 4689 | -5/Factory | Entered another Factory area 4689 | -4/Factory | Evolved 2 slots: Utility x2 4723 | -4/Factory | Discovered new exit (range 7) 4738 | -4/Factory | Spotted B-86 Titan 4789 | -4/Factory | Discovered new exit (range 20) 4807 | -4/Factory | Central database locked down 4809 | -4/Factory | Entered Extension 4826 | -4/Extension | Rescued a captive Derelict 4860 | -4/Extension | Rescued A7 4911 | -4/Extension | Rescued a captive Derelict 4913 | -4/Extension | Rescued a captive Derelict 5020 | -4/Extension | Spotted B-86 Titan 5209 | -4/Extension | Build established: Hacker-Sprinter 5259 | -4/Extension | Disrupted transfer network 5335 | -4/Extension | Destroyed A7 5337 | -4/Extension | Extracted ID and sensor layout for unrecognized location from A7's data core 5346 | -4/Extension | Spotted B-86 Titan 5376 | -4/Extension | Discovered new exit (range 22) 5376 | -4/Extension | Discovered new exit (range 20) 5399 | -4/Extension | Lost 6 parts (2p2n2u) 5408 | -4/Extension | Entered Cetus 5408 | -4/Cetus | Accompanied by 2 allies 5415 | -4/Cetus | Spotted Cetus Guard 5415 | -4/Cetus | Spotted Cetus Guard 5415 | -4/Cetus | Spotted Cetus Guard 5415 | -4/Cetus | Spotted Cetus Guard 5433 | -4/Cetus | Discovered new exit (range 22) 5440 | -4/Cetus | Entered Archives 5455 | -4/Archives | Discovered new exit (range 17) 5467 | -4/Archives | Entered Hub_04(d) 5505 | -4/Hub_04(d) | Discovered new exit (range 4) 5512 | -4/Hub_04(d) | Entered Research 5512 | -3/Research | Evolved 2 slots: Propulsion x1, Utility x1 5587 | -3/Research | Lost 7 parts (1n5u1w) 5614 | -3/Research | Spotted B-86 Titan 5626 | -3/Research | Build established: Hacker-Mutant 5728 | -3/Research | Identified exit to Research 5762 | -3/Research | Spotted B-86 Titan 5776 | -3/Research | Core integrity fell below 50% 5787 | -3/Research | Entered another Research area 5787 | -2/Research | Evolved 2 slots: Utility x2 5974 | -2/Research | Identified exit to Access 5974 | -2/Research | Identified exit to Quarantine 6002 | -2/Research | Spotted B-90 Cyclops 6054 | -2/Research | Spotted B-90 Cyclops 6059 | -2/Research | Entered Quarantine 6072 | -2/Quarantine | Spotted Alpha 7 6082 | -2/Quarantine | Found Alien Launcher 6083 | -2/Quarantine | Identified Sigix Terminator 6090 | -2/Quarantine | Lost 3 parts (1u2w) 6110 | -2/Quarantine | Found Alien Artifact 6111 | -2/Quarantine | Identified Stasis Generator 6125 | -2/Quarantine | Found Alien Artifact 6126 | -2/Quarantine | Identified Hpw. Transdimensional Reconstructor 6126 | -2/Quarantine | Warped through subspace 6195 | -2/Quarantine | Lost 3 parts (2n1u) 6221 | -2/Quarantine | Found Ragnarok Missile Launcher 6266 | -2/Quarantine | Found Prototype Hackware 6267 | -2/Quarantine | Identified Exp. System Shield 6281 | -2/Quarantine | Core integrity fell below 50% 6286 | -2/Quarantine | Entered Access 6286 | -1/Access | Evolved 2 slots: Propulsion x1, Utility x1 6522 | -1/Access | Destroyed 7 combat bots 6536 | -1/Access | First assault squad dispatched 6553 | -1/Access | Discovered new exit (range 10) 6553 | -1/Access | Spotted B-99 Colossus 6553 | -1/Access | Spotted B-99 Colossus 6554 | -1/Access | Core integrity fell below 50% 6557 | -1/Access | Identified exit to Command 6557 | -1/Access | Entered Command 6574 | -1/Command | Lost 9 parts (1p3n5u) 6611 | -1/Command | Fired Sigix Terminator 6611 | -1/Command | Destroyed self with Sigix Terminator Last Messages --------------- >>Index(Terminals) Found 22 terminals. Downloaded coordinate data. 06604_ Slammed into R-10 Processor. 06605_ R-10 Processor sends out distress signal. 06605_ Slammed into R-10 Processor. 06608_ O-32 Director uses terminal to summon reinforcements. 06608_ ALERT: Hostiles spotted, dispatching reinforcements to Terminal C018. 06608_ O-32 Director locks terminal. 06610_ Penetrated by Slug. 06611_ Sigix Terminator expended. 06611_ Destroyed Phase Gun. 06611_ Destroyed Myomer Leg. 06611_ Destroyed Hvy. Laser. 06611_ Destroyed Lgt. Quantum Reactor. 06611_ Destroyed Adv. Heat Sink. 06611_ G-73 Enforcer destroyed. 06611_ Destroyed Hvy. Armor Plating. 06611_ Y-72 Warden destroyed. Map ----- +----------------------------------------------------+ | ?????????????????????????????????????????????????? | | ?????????????????????????????????????????????????? | | ?????????????????????????????????????????????????? | | ??????????????????????????????????????????????#### | | ??????????????????????????????????????????????# | | ??????????????????????????????????????????????# | | ??????????????????????????????????????????????# | | ??????????????????????????????????????????????# | | ??????????????????????????????????????????????# | | ??????????????????????????????????????????????# | | ???????????????????????; ??????????????????#### | | ????????????????????? ; ; ???????????????????? | | ?????????????????? ; ; ????????????????? | | ???????????????? ;;;;;;; ;; ??????????????? | | ???????????????# ; ; ; ;;;;;;;;;;????????????? | | ???????????????# ; ; ; ;; = ????????????? | | ???????????????# ; ; ; ;; ??????????? | | ?????????????###;;;; ;;;; ;; ????????? | | ???????????? ; ; ;; !!!????????? | | ????????????? ; ; ;; !!!######### | | ??????????????? ; ; ;; !!!?# + | | ????????????????? ; ; ;; ??# ## | | ???????????????????; ;;;; ;; ???# #? | | ????????????????????? ; ; ;; ?????# #? | | ??????????????????????? ; ;; ???????# | #? | | ????????????????????????#@ ;# ????????# #? | | ???????????????????????## ## ?????????# #? | | ???????????????????????# o ##+##############+#+# | | ???????????????????????# T" ss # | | ???????????????????????# "" s + | | ???????????????????????# ##+##############+### | | ???????????????????????###### ?????????????? ?? | | ????????????????????????????#??????????????? ??? | | ??????????????????????????????????????????? =?? | | ??????????????????????????????????????????? ?? | | ??????????????????????????????????????????# #? | | ??????????????????????????????????????????# #? | | ??????????????????????????????????????????# #? | | ??????????????????????????????????????????#####+#? | | ?????????????????????????????????????????????????? | | ?????????????????????????????????????????????????? | | ?????????????????????????????????????????????????? | | ?????????????????????????????????????????????????? | | ?????????????????????????????????????????????????? | | ?????????????????????????????????????????????????? | | ?????????????????????????????????????????????????? | | ?????????????????????????????????????????????????? | | ?????????????????????????????????????????????????? | | ?????????????????????????????????????????????????? | | ?????????????????????????????????????????????????? | +----------------------------------------------------+ Best States ------------- Heat Dissipation 52 Energy Generation 43 Energy Capacity 1520 Matter Stores 300 Matter Capacity 300 Sight Range 22 Terrain Scan Range 24 Terrain Scan Density 10 Power Amplification 20 Additional Mass Support 25 Armor Coverage 450 Utility Shielding 66 Melee Speed Boost 20 Phase Shifting 5 Evasion (%) 81 Melee Accuracy 14 Core Analysis 8 Recoil Reduction 4 Offensive Hacking 34 Defensive Hacking 26 Item Schematics ----------------- Lrg. Storage Unit | -9/Materials | Hacked Power Sword | -4/Factory | Scanalyzed Adv. Hacking Suite | -4/Factory | Hacked Exp. Sensor Array | -4/Extension | Hacked Robot Schematics ------------------ E-15 Imp | -6/Factory | Downloaded R-10 Processor | -2/Quarantine | Hacked Fabricated ------------ Nothing Alien Tech Used ----------------- Sigix Terminator Stasis Generator High-powered Transdimensional Reconstructor Achievements -------------- None Challenges ------------ None Game ------ Seed DimensionalArcFacilitator Manual? 0 Play Time 01:40:17 Cumulative 298.6 hours Start 2020.01.08 @ 17:29:39 End 2020.01.08 @ 19:31:46 Sessions 1 Manual Loads 0 Difficulty Rogue Special Mode None Game No. 335 Rogue 335 Adventurer 0 Explorer 0 Win Type - Total 5 Types 2/1/1/1/0/0/0 Lore% 69 Gallery% 86 Achievement% 65 Wizard Run 0 Options --------- ASCII 0 Keyboard 0 Movement Numpad Keybinds 0 Fullscreen 1 Font 16/Terminus Map View 75x55 Tactical HUD 1 Map Filters NONE Filters NONE Steam 1 RUN: b2bbb9b8-d1d9-4e9d-93b0-44037110a159